{"text_format":"3","workbook":"xlsx","n_sheets":4,"sheets":["Return material form","Translation","Selections","Changelog"],"not_rendered":{"images":1,"defined_names":3,"comments":1},"read":"whole","date_system":"1900"}

{"sheet":"Return material form","index":0,"n_rows":83,"n_cols":56,"rows_kept":83,"merged":[[0,43,0,46],[0,48,0,51],[0,53,0,56],[3,0,4,56],[5,0,5,56],[7,3,7,14],[7,19,7,30],[7,33,7,48],[8,3,12,14],[8,19,12,30],[8,35,12,46],[8,51,9,53],[16,3,16,53],[18,4,18,13],[18,17,18,26],[18,30,18,39],[18,43,18,52],[19,4,19,7],[19,8,19,13],[19,17,19,20],[19,21,19,26],[19,30,19,33],[19,34,19,39],[19,43,19,46],[19,47,19,52],[22,4,22,13],[22,17,22,26],[22,30,22,39],[22,43,22,52],[23,4,23,13],[23,17,23,26],[23,30,23,39],[23,43,23,52],[24,4,24,13],[24,17,24,26],[24,30,24,39],[24,43,24,52],[25,4,25,13],[25,17,25,26],[25,30,25,39],[25,43,25,52],[29,3,30,16],[29,22,30,35],[29,40,30,53],[31,26,31,31],[31,44,31,49],[33,22,33,25],[33,26,33,31],[33,40,33,43],[33,44,33,49],[35,3,36,16],[37,7,37,12],[39,3,39,6],[39,7,39,12],[40,3,42,52],[43,3,43,52],[44,3,44,53],[45,3,45,53],[46,3,46,53],[47,3,47,53],[48,3,48,53],[49,3,49,53],[50,3,50,53],[51,3,51,53],[52,3,52,53],[53,3,53,53],[54,3,54,53],[57,3,59,52],[60,3,60,53],[61,3,61,53],[62,3,62,53],[63,3,63,53],[64,3,64,53],[65,3,65,53],[66,3,66,53],[67,3,67,53],[68,3,68,53],[69,3,69,53],[70,3,70,53],[74,50,74,56],[78,3,78,17],[78,39,78,53],[79,3,79,17],[79,39,79,53],[82,0,83,51],[82,52,83,52],[82,53,83,54],[82,55,83,56]]}
[]
[]
[]
[{"$f":"UPPER(Translation!A7)","v":"RETURN MATERIAL FORM"}]
[]
[{"$f":"Translation!A3","v":"(1x customer, 1x TOORS)"}]
[]
[{"$nulls":3},{"$f":"Translation!A4","v":"Customer"},{"$nulls":15},{"$f":"Translation!A5","v":"Number of claim"},{"$nulls":13},{"$f":"Translation!A6","v":"Contact person in TOORS"}]
[{"$nulls":51},"EN"]
{"$rows_empty":7}
[{"$nulls":3},{"$f":"Translation!A8","v":"Return material"}]
[]
[{"$nulls":4},{"$f":"Translation!A9&\" \"&Translation!A10","v":"Motor GFA"},{"$nulls":12},{"$f":"Translation!A9&\" \"&Translation!A11","v":"Motor Tormatic"},{"$nulls":12},{"$f":"Translation!A9&\" \"&Translation!A12","v":"Motor BFT"},{"$nulls":12},{"$f":"Translation!A9&\" \"&Translation!A13","v":"Motor Nice"}]
[{"$nulls":4},{"$f":"Translation!A14","v":"pcs:"},{"$nulls":12},{"$f":"Translation!A14","v":"pcs:"},{"$nulls":12},{"$f":"Translation!A14","v":"pcs:"},{"$nulls":12},{"$f":"Translation!A14","v":"pcs:"}]
[]
[{"$nulls":4},{"$f":"Translation!A15","v":"production number:"},{"$nulls":12},{"$f":"Translation!A15","v":"production number:"},{"$nulls":12},{"$f":"Translation!A15","v":"production number:"},{"$nulls":12},{"$f":"Translation!A15","v":"production number:"}]
{"$rows_empty":7}
[{"$nulls":3},{"$f":"Translation!A16&\":\"","v":"Equipment of motor:"},{"$nulls":18},{"$f":"Translation!A21&\":\"","v":"Light barrier:"},{"$nulls":17},{"$f":"Translation!A22&\":\"","v":"Remote controler:"}]
[]
[{"$nulls":4},{"$f":"Translation!A17","v":"cabels"},{"$nulls":7},{"$f":"Translation!A18","v":"control box"},{"$nulls":9},{"$f":"Translation!A24&\":\"","v":"type:"},{"$nulls":17},{"$f":"Translation!A24&\":\"","v":"type:"}]
[]
[{"$nulls":4},{"$f":"Translation!A20","v":"console"},{"$nulls":7},{"$f":"Translation!A19","v":"mounting material"},{"$nulls":9},{"$f":"Translation!A14","v":"pcs:"},{"$nulls":17},{"$f":"Translation!A14","v":"pcs:"}]
[]
[{"$nulls":3},{"$f":"Translation!A23&\":\"","v":"Photocell:"}]
[]
[{"$nulls":3},{"$f":"Translation!A24&\":\"","v":"type:"}]
[]
[{"$nulls":3},{"$f":"Translation!A14","v":"pcs:"}]
[{"$nulls":3},{"$f":"UPPER(Translation!A25)","v":"OTHERS"}]
[]
[]
[{"$nulls":3},{"$f":"Translation!A26","v":"(description of material)"}]
{"$rows_empty":13}
[{"$nulls":3},{"$f":"UPPER(Translation!A27)","v":"DESCRIPTION OF FAULT"}]
{"$rows_empty":21}
[{"$nulls":3},{"$f":"Translation!A28","v":"date and customer's signature"},{"$nulls":35},{"$f":"Translation!A29","v":"date and signature of Toors"}]
[]
[]
[{"$f":"\"TOORS CZ s.r.o., Turkova 1338, 504 01 Nový Bydžov, \"&Translation!A2&\", T: +420 495 491 855,  F: +420 498 606 714, e-mail: toors@toors.cz, www.toors.cz\"","v":"TOORS CZ s.r.o., Turkova 1338, 504 01 Nový Bydžov, Czech Republic, T: +420 495 491 855,  F: +420 498 606 714, e-mail: toors@toors.cz, www.toors.cz"},{"$nulls":52},"rev.: ",null,1839]

{"sheet":"Translation","index":1,"n_rows":134,"n_cols":7,"rows_kept":134,"hidden":true}
[{"$f":"IF('Return material form'!AZ9=B1,1,IF('Return material form'!AZ9=C1,2,IF('Return material form'!AZ9=D1,3,IF('Return material form'!AZ9=E1,4,IF('Return material form'!AZ9=F1,5,IF('Return material form'!AZ9=G1,6,\"Chyba\"))))))","v":2},"CZ","EN","DE","PL","NL","FR"]
[{"$f":"VLOOKUP(B2,B:G,$A$1,FALSE)","v":"Czech Republic"},"Česká republika","Czech Republic","Tschechische Republik","Republika Czeska","Tsjechische Republiek","République tchèque"]
[{"$f":"VLOOKUP(B3,B:G,$A$1,FALSE)","v":"(1x customer, 1x TOORS)"},"(1x zákazník, 1x TOORS)","(1x customer, 1x TOORS)","(1x Kunde, 1x TOORS)","(1 x klient, 1 x TOORS)","(1x klant, 1 x toors)","(1x client, 1x TOORS) "]
[{"$f":"VLOOKUP(B4,B:G,$A$1,FALSE)","v":"Customer"},"Zákazník","Customer","Kunde","Klient","Klant","Client"]
["Number of claim","Číslo reklamace TOORS","Number of claim","Reklamation - Nummer","Numer reklamacji","Aantal de klacht","N° de la réclamation"]
["Contact person in TOORS","Kontaktní osoba v TOORS","Contact person in TOORS","Kontaktperson in TOORS","Osoba kontaktowa klienta w TOORS","Contact persoon in Toors","Personne de contact à TOORS"]
["Return material form",{"$f":"\"Přejímací protokol\"& CHAR(10)& \"vráceného materiálu\"","v":"Přejímací protokol\nvráceného materiálu"},"Return material form","Übernahme-Formular des zurückgeschickten Materials",{"$f":"\"Protokół zwracanego\"& CHAR(10)&\" materiału\"","v":"Protokół zwracanego\n materiału"},{"$f":"\"protocol van\"& CHAR(10)& \"geretourneerde materiaal\"","v":"protocol van\ngeretourneerde materiaal"},"Formulaire de retour de marchandise"]
["Return material","Vrácený materiál","Return material","Zurückgeschickte Material","Zwracany materiał","Geretourneerde materiaal","Marchandises en retour"]
["Motor","Motor","Motor","Motor","Napęd","Motor ","Moteur"]
["GFA","GFA","GFA","GFA","GFA","GFA","GFA"]
["Tormatic","Tormatic","Tormatic","Tormatic","Tormatic","Tormatic","Tormatic"]
[{"$f":"VLOOKUP(B12,B:G,$A$1,FALSE)","v":"BFT"},"BFT","BFT","BFT","BFT","BFT","BFT"]
["Nice","Nice","Nice","Nice","Nice","Nice","Nice"]
["pcs:","počet ks:","pcs:","stück:","sztuk:","stuks:","pièces:"]
["production number:","výrobní číslo:","production number:","Herstellungnummer:","numer fabryczny","serienummer","numéro de série"]
["Equipment of motor","Příslušenství motoru","Equipment of motor","Motorzubehör","Akcesoria  napędu","Accessoires van de motor","Accessoires du moteur"]
["cabels","kabely","cabels","Kabel","kable","kabels","câbles"]
["control box","kontrol box","control box","Kontrolbos","sterownik","besturingseendhed","unité de commande"]
["mounting material","montážní materiál","mounting material","Montagematerial","materiał montażowy","bevestigingsmateriaal","matériaux de montage"]
["console","konzola","console","Konsole","konsola ","console","console"]
["Light barrier","Optolišta","Light barrier","Lichtschranke","Listwa optyczna","Optische lat","Barre optique"]
["Remote controler","Dálkový ovladač","Remote controler","Handsender","Pilot","Afstandsbediening ","Commande à distance"]
["Photocell","Fotobuňky","Photocell","Fotozellen","Fotokomórka","Fotocel","Photocellule"]
["type","typ","type","Typ","typ","type","type"]
["Others","Jiný","Others","Anderes","Inny","Ander","D´autre"]
["(description of material)","(popis materiálu)","(description of material)","(Materialbeschreibung)","(opis materiału)","(beschrijving van materiaal)","(description)"]
["Description of Fault","Popis závady","Description of Fault","Defektbeschreibung","Opis braku","Beschrijving van defect","Description du défaut"]
["date and customer's signature","předal (datum, podpis zákazníka)","date and customer's signature","übergeben von (Datum, Unterschrift)","data, podpis klienta","datum, handtekening van de klant","Date (signature du client)"]
["date and signature of Toors","převzal (datum, podpis, razítko TOORS)","date and signature of Toors","angenommen von(Datum, Unterschrift)","data, podpis, pieczątka TOORS ","datum, handtekening, stempel TOORS","Date (signature du TOORS)"]
[{"$error":"#N/A"}]
[{"$error":"#N/A"}]
[{"$error":"#N/A"}]
[{"$error":"#N/A"}]
[{"$error":"#N/A"}]
[{"$error":"#N/A"}]
[{"$error":"#N/A"}]
[{"$error":"#N/A"}]
[{"$error":"#N/A"}]
[{"$error":"#N/A"}]
[{"$error":"#N/A"}]
[{"$error":"#N/A"}]
[{"$error":"#N/A"}]
[{"$error":"#N/A"}]
[{"$error":"#N/A"}]
[{"$error":"#N/A"}]
[{"$error":"#N/A"}]
[{"$error":"#N/A"}]
[{"$error":"#N/A"}]
[{"$error":"#N/A"}]
[{"$error":"#N/A"}]
[{"$error":"#N/A"}]
[{"$error":"#N/A"}]
[{"$error":"#N/A"}]
[{"$error":"#N/A"}]
[{"$error":"#N/A"}]
[{"$error":"#N/A"}]
[{"$error":"#N/A"}]
[{"$error":"#N/A"}]
[{"$error":"#N/A"}]
[{"$error":"#N/A"}]
[{"$error":"#N/A"}]
[{"$error":"#N/A"}]
[{"$error":"#N/A"}]
[{"$error":"#N/A"}]
[{"$error":"#N/A"}]
[{"$error":"#N/A"}]
[{"$error":"#N/A"}]
[{"$f":"VLOOKUP(B68,B:G,$A$1,FALSE)","v":{"$error":"#N/A"}}]
[{"$error":"#N/A"}]
[{"$error":"#N/A"}]
[{"$error":"#N/A"}]
[{"$error":"#N/A"}]
[{"$error":"#N/A"}]
[{"$error":"#N/A"}]
[{"$error":"#N/A"}]
[{"$error":"#N/A"}]
[{"$error":"#N/A"}]
[{"$error":"#N/A"}]
[{"$error":"#N/A"}]
[{"$error":"#N/A"}]
[{"$error":"#N/A"}]
[{"$error":"#N/A"}]
[{"$error":"#N/A"}]
[{"$error":"#N/A"}]
[{"$error":"#N/A"}]
[{"$error":"#N/A"}]
[{"$error":"#N/A"}]
[{"$error":"#N/A"}]
[{"$error":"#N/A"}]
[{"$error":"#N/A"}]
[{"$error":"#N/A"}]
[{"$error":"#N/A"}]
[{"$error":"#N/A"}]
[{"$error":"#N/A"}]
[{"$error":"#N/A"}]
[{"$error":"#N/A"}]
[{"$error":"#N/A"}]
[{"$error":"#N/A"}]
[{"$error":"#N/A"}]
[{"$error":"#N/A"}]
[{"$error":"#N/A"}]
[{"$error":"#N/A"}]
[{"$error":"#N/A"}]
[{"$error":"#N/A"}]
[{"$error":"#N/A"}]
[{"$error":"#N/A"}]
[{"$error":"#N/A"}]
[{"$error":"#N/A"}]
[{"$error":"#N/A"}]
[{"$error":"#N/A"}]
[{"$error":"#N/A"}]
[{"$error":"#N/A"}]
[{"$error":"#N/A"}]
[{"$error":"#N/A"}]
[{"$error":"#N/A"}]
[{"$error":"#N/A"}]
[{"$error":"#N/A"}]
[{"$error":"#N/A"}]
[{"$error":"#N/A"}]
[{"$error":"#N/A"}]
[{"$error":"#N/A"}]
[{"$error":"#N/A"}]
[{"$error":"#N/A"}]
[{"$error":"#N/A"}]
[{"$error":"#N/A"}]
[{"$error":"#N/A"}]
[{"$error":"#N/A"}]
[{"$error":"#N/A"}]
[{"$error":"#N/A"}]
[{"$error":"#N/A"}]
[{"$error":"#N/A"}]
[{"$f":"VLOOKUP(B132,B:G,$A$1,FALSE)","v":{"$error":"#N/A"}}]
[{"$error":"#N/A"}]
[{"$error":"#N/A"}]

{"sheet":"Selections","index":2,"n_rows":83,"n_cols":56,"rows_kept":83,"hidden":true}
["Výběr jazyka"]
["CZ"]
["EN"]
["DE"]
["PL"]
["FR"]
["NL"]
[]
["Ano"]
["Ne"]
{"$rows_empty":72}
[{"$nulls":55},1649]

{"sheet":"Changelog","index":3,"n_rows":15,"n_cols":9,"rows_kept":15,"hidden":true}
[null,null,"INDY","GUARDY","EXT","EXPRESS","2WD","MD","NG"]
[null,"Verze ke smazání",1836,1836,1836,1836,1819,1819,1819]
[null,"Aktuální verze",1837,1836,1836,1836,1836,1836,1836]
[]
[null,"Aktualizace dle jazykových verzí"]
[null,{"$f":"Selections!A2","v":"CZ"},"Ano","Ano","Ano","Ano","Ano","Ano","Ano"]
[null,{"$f":"Selections!A3","v":"EN"},"Ano","Ano","Ano","Ano","Ano","Ano","Ano"]
[null,{"$f":"Selections!A4","v":"DE"},"Ano","Ano","Ano","Ano","Ano","Ano","Ano"]
[null,{"$f":"Selections!A5","v":"PL"},"Ano","Ano","Ano","Ano","Ano","Ano","Ano"]
[null,{"$f":"Selections!A7","v":"NL"},"Ano","Ano","Ano","Ano","Ano","Ano","Ano"]
[null,{"$f":"Selections!A6","v":"FR"},"Ano","Ano","Ano","Ano","Ano","Ano","Ano"]
[]
["Datum","Verze","Popis"]
["2018-09-18",1837,"Vydána první verze v redesignu a jednom dokumentu."]
["2018-09-24",1839,"Doplněno o FR, NL a PL překlady"]